fUST/lending_fUST_20250704
["ID","MTS","AMOUNT","RATE_DAILY","PERIOD"]
[369384091,1751562646682,-1544.58,0.00018356,2]
[369384093,1751562646692,-2000.0,0.00018549,2]
[369384095,1751562646701,-160.0,0.00018575,2]
[369384097,1751562646711,-837.389109,0.00018575,2]
[369384099,1751562646726,-160.0,0.00018575,2]
[369384101,1751562646737,-847.79783075,0.00018575,2]
[369384103,1751562646746,-213.94585247,0.00018575,2]
[369384105,1751562646756,-160.0,0.00018575,2]
[369384107,1751562646765,-215.07701991,0.00018575,2]
[369384109,1751562646775,-230.37558374,0.00018575,2]
[369384111,1751562646784,-160.0,0.00018575,2]
[369384113,1751562646793,-12575.98004106,0.00018575,2]
[369384114,1751562646812,-160.0,0.00018575,2]
[369384117,1751562646822,-160.0,0.00018575,2]
[369384119,1751562646831,-160.0,0.00018576,2]
[369384121,1751562646841,-160.0,0.00018576,2]
[369384123,1751562646850,-1291.77,0.00018629,2]
[369384125,1751562646859,-460.0,0.0001863,2]
[369384127,1751562646868,-460.0,0.0001863,2]
[369384129,1751562646878,-460.0,0.0001863,2]
[369384131,1751562646887,-3909.92,0.0001863,2]
[369384133,1751562646897,-460.0,0.0001863,2]
[369384135,1751562646906,-1107.88,0.0001863,2]
[369384137,1751562646915,-460.0,0.0001863,2]
[369384138,1751562646924,-460.0,0.0001863,2]
[369384140,1751562646934,-460.0,0.0001863,2]
[369384142,1751562646943,-316.16,0.0001863,2]
[369384144,1751562646953,-2575.35,0.0001863,2]
[369384147,1751562646963,-2549.45,0.0001863,2]
[369384149,1751562646973,-460.0,0.0001863,2]
[369384151,1751562646983,-460.0,0.0001863,2]
[369384153,1751562646993,-460.0,0.0001863,2]
[369384155,1751562647003,-1158.99,0.0001863,2]
[369384157,1751562647012,-992.72,0.0001863,2]
[369384159,1751562647021,-2475.14,0.0001863,2]
[369384161,1751562647031,-982.65,0.0001863,2]
[369384163,1751562647040,-460.0,0.0001863,2]
[369384165,1751562647049,-460.0,0.0001863,2]
[369384167,1751562647059,-460.0,0.0001863,2]
[369384168,1751562647068,-334.42818556,0.0001863,2]
[369384170,1751562647078,-1439.21670903,0.0001863,2]
[369384200,1751562647341,-1335.86329097,0.0001863,2]
[369384202,1751562647351,-2110.18,0.0001863,2]
[369384204,1751562647360,-460.0,0.0001863,2]
[369384206,1751562647369,-1040.84,0.0001863,2]
[369384208,1751562647378,-460.0,0.0001863,2]
[369384210,1751562647387,-460.0,0.0001863,2]
[369384212,1751562647398,-573.89,0.0001863,2]
[369384213,1751562647407,-460.0,0.0001863,2]
[369384216,1751562647418,-1705.66,0.0001863,2]
[369384218,1751562647427,-460.0,0.0001863,2]
[369384220,1751562647436,-817.79,0.0001863,2]
[369384222,1751562647446,-460.0,0.0001863,2]
[369384224,1751562647455,-460.0,0.0001863,2]
[369384226,1751562647465,-460.0,0.0001863,2]
[369384228,1751562647474,-460.0,0.0001863,2]
[369384230,1751562647483,-460.0,0.0001863,2]
[369384232,1751562647492,-460.0,0.0001863,2]
[369384234,1751562647501,-460.0,0.0001863,2]
[369384236,1751562647512,-460.0,0.0001863,2]
[369384238,1751562647522,-2092.36,0.0001863,2]
[369384240,1751562647532,-678.46,0.0001863,2]
[369384242,1751562647541,-3743.2,0.0001863,2]
[369384244,1751562647550,-460.0,0.0001863,2]
[369384246,1751562647559,-460.0,0.0001863,2]
[369384248,1751562647568,-854.62,0.0001863,2]
[369384250,1751562647577,-460.0,0.0001863,2]
[369384252,1751562647587,-460.0,0.0001863,2]
[369384254,1751562647595,-460.0,0.0001863,2]
[369384256,1751562647604,-460.0,0.0001863,2]
[369384258,1751562647615,-856.3,0.0001863,2]
[369384260,1751562647624,-1224.49,0.0001863,2]
[369384262,1751562647633,-978.4,0.0001863,2]
[369384264,1751562647642,-1544.58,0.0001863,2]
[369384266,1751562647651,-2000.0,0.00018672,2]
[369384268,1751562647660,-2000.0,0.00018672,2]
[369384270,1751562647669,-151.0,0.000188,2]
[369384272,1751562647678,-151.0,0.000189,2]
[369384274,1751562647687,-460.0,0.00018904,2]
[369384276,1751562647696,-460.0,0.00018904,2]
[369384278,1751562647705,-460.0,0.00018904,2]
[369384280,1751562647714,-3909.92,0.00018904,2]
[369384282,1751562647727,-239.77186916,0.00018904,2]
[369384284,1751562647737,-1107.88,0.00018904,2]
[369384286,1751562647746,-460.0,0.00018904,2]
[369384288,1751562647755,-460.0,0.00018904,2]
[369384290,1751562647766,-460.0,0.00018904,2]
[369384292,1751562647775,-2575.35,0.00018904,2]
[369384294,1751562647784,-2549.45,0.00018904,2]
[369384296,1751562647794,-460.0,0.00018904,2]
[369384298,1751562647804,-460.0,0.00018904,2]
[369384300,1751562647813,-402.73,0.00018904,2]
[369384302,1751562647822,-1158.99,0.00018904,2]
[369384304,1751562647831,-992.72,0.00018904,2]
[369384306,1751562647840,-2475.14,0.00018904,2]
[369384308,1751562647849,-982.65,0.00018904,2]
[369384310,1751562647859,-460.0,0.00018904,2]
[369384312,1751562647868,-460.0,0.00018904,2]
[369384314,1751562647876,-460.0,0.00018904,2]
[369384316,1751562647885,-2775.08,0.00018904,2]
[369384318,1751562647895,-2110.18,0.00018904,2]
[369384320,1751562647904,-460.0,0.00018904,2]
[369384322,1751562647914,-1040.84,0.00018904,2]
[369384324,1751562647924,-460.0,0.00018904,2]
[369384326,1751562647933,-460.0,0.00018904,2]
[369384328,1751562647943,-573.89,0.00018904,2]
[369384330,1751562647953,-460.0,0.00018904,2]
[369384332,1751562647962,-1705.66,0.00018904,2]
[369384334,1751562647972,-460.0,0.00018904,2]
[369384336,1751562647981,-817.79,0.00018904,2]
[369384338,1751562647990,-460.0,0.00018904,2]
[369384340,1751562648000,-419.66,0.00018904,2]
[369384342,1751562648010,-460.0,0.00018904,2]
[369384344,1751562648019,-460.0,0.00018904,2]
[369384346,1751562648029,-460.0,0.00018904,2]
[369384348,1751562648038,-460.0,0.00018904,2]
[369384350,1751562648048,-460.0,0.00018904,2]
[369384352,1751562648056,-460.0,0.00018904,2]
[369384354,1751562648067,-2092.36,0.00018904,2]
[369384356,1751562648076,-678.46,0.00018904,2]
[369384358,1751562648087,-3743.2,0.00018904,2]
[369384360,1751562648096,-460.0,0.00018904,2]
[369384362,1751562648106,-460.0,0.00018904,2]
[369384364,1751562648118,-854.62,0.00018904,2]
[369384367,1751562648131,-460.0,0.00018904,2]
[369384369,1751562648146,-460.0,0.00018904,2]
[369384372,1751562648161,-460.0,0.00018904,2]
[369384374,1751562648172,-460.0,0.00018904,2]
[369384376,1751562648186,-856.3,0.00018904,2]
[369384379,1751562648200,-978.4,0.00018904,2]
[369384381,1751562648214,-1224.49,0.00018904,2]
[369384384,1751562648228,-1544.58,0.00018904,2]
[369384386,1751562648241,-2500.0,0.00019097,2]
[369384389,1751562648254,-460.0,0.00019178,2]
[369384391,1751562648269,-460.0,0.00019178,2]
[369384394,1751562648283,-460.0,0.00019178,2]
[369384396,1751562648296,-3909.92,0.00019178,2]
[369384398,1751562648308,-1107.88,0.00019178,2]
[369384401,1751562648321,-460.0,0.00019178,2]
[369384403,1751562648334,-321.8,0.00019178,2]
[369384405,1751562648348,-460.0,0.00019178,2]
[369384408,1751562648361,-2575.35,0.00019178,2]
[369384410,1751562648373,-2549.45,0.00019178,2]
[369384412,1751562648385,-460.0,0.00019178,2]
[369384414,1751562648395,-460.0,0.00019178,2]
[369384417,1751562648408,-1158.99,0.00019178,2]
[369384419,1751562648419,-992.72,0.00019178,2]
[369384421,1751562648433,-2475.14,0.00019178,2]
[369384424,1751562648447,-982.65,0.00019178,2]
[369384426,1751562648460,-460.0,0.00019178,2]
[369384429,1751562648473,-460.0,0.00019178,2]
[369384431,1751562648488,-460.0,0.00019178,2]
[369384434,1751562648502,-2775.08,0.00019178,2]
[369384436,1751562648515,-2110.18,0.00019178,2]
[369384438,1751562648525,-460.0,0.00019178,2]
[369384440,1751562648536,-1040.84,0.00019178,2]
[369384442,1751562648547,-460.0,0.00019178,2]
[369384445,1751562648560,-460.0,0.00019178,2]
[369384447,1751562648576,-573.89,0.00019178,2]
[369384450,1751562648589,-460.0,0.00019178,2]
[369384452,1751562648600,-1705.66,0.00019178,2]
[369384454,1751562648612,-460.0,0.00019178,2]
[369384456,1751562648624,-817.79,0.00019178,2]
[369384459,1751562648637,-526.1171137,0.00019178,2]
[369384461,1751562648647,-460.0,0.00019178,2]
[369384463,1751562648658,-460.0,0.00019178,2]
[369384465,1751562648668,-460.0,0.00019178,2]
[369384467,1751562648680,-460.0,0.00019178,2]
[369384470,1751562648691,-460.0,0.00019178,2]
[369384472,1751562648703,-460.0,0.00019178,2]
[369384474,1751562648714,-2092.36,0.00019178,2]
[369384476,1751562648730,-678.46,0.00019178,2]
[369384479,1751562648742,-3743.2,0.00019178,2]
[369384481,1751562648754,-460.0,0.00019178,2]
[369384483,1751562648766,-460.0,0.00019178,2]
[369384485,1751562648778,-854.62,0.00019178,2]
[369384488,1751562648790,-460.0,0.00019178,2]
[369384490,1751562648803,-460.0,0.00019178,2]
[369384492,1751562648815,-460.0,0.00019178,2]
[369384494,1751562648826,-460.0,0.00019178,2]
[369384496,1751562648837,-856.3,0.00019178,2]
[369384499,1751562648849,-1224.49,0.00019178,2]
[369384501,1751562648861,-978.4,0.00019178,2]
[369384503,1751562648872,-1544.58,0.00019178,2]
[369384505,1751562648883,-666.0,0.00019178,2]
[369384508,1751562648895,-705.658413,0.00019178,2]
[369384510,1751562648906,-2500.0,0.0001922,2]
[369384512,1751562648918,-2500.0,0.0001922,2]
[369384514,1751562648929,-151.0,0.000193,2]
[369384516,1751562648941,-151.0,0.000193,2]
[369384519,1751562648953,-100000.0,0.00019329,2]
[369384521,1751562648964,-460.0,0.00019452,2]
[369384523,1751562648976,-460.0,0.00019452,2]
[369384525,1751562648988,-460.0,0.00019452,2]
[369384527,1751562649000,-3909.92,0.00019452,2]
[369384528,1751562649012,-1107.88,0.00019452,2]
[369384529,1751562649024,-293.84,0.00019452,2]
[369384530,1751562649035,-278.71,0.00019452,2]
[369384531,1751562649048,-198.83237647,0.00019452,2]
[369384532,1751562649060,-2575.35,0.00019452,2]
[369384533,1751562649074,-2549.45,0.00019452,2]
[369384534,1751562649087,-460.0,0.00019452,2]
[369384535,1751562649100,-460.0,0.00019452,2]
[369384536,1751562649113,-1158.99,0.00019452,2]
[369384537,1751562649125,-992.72,0.00019452,2]
[369384538,1751562649135,-2475.14,0.00019452,2]
[369384540,1751562649145,-982.65,0.00019452,2]
[369384542,1751562649155,-460.0,0.00019452,2]
[369384544,1751562649165,-460.0,0.00019452,2]
[369384546,1751562649175,-2775.08,0.00019452,2]
[369384548,1751562649186,-2110.18,0.00019452,2]
[369384550,1751562649195,-460.0,0.00019452,2]
[369384552,1751562649205,-1040.84,0.00019452,2]
[369384554,1751562649214,-460.0,0.00019452,2]
[369384556,1751562649224,-460.0,0.00019452,2]
[369384558,1751562649234,-573.89,0.00019452,2]
[369384560,1751562649244,-460.0,0.00019452,2]
[369384562,1751562649253,-1705.66,0.00019452,2]
[369384564,1751562649263,-460.0,0.00019452,2]
[369384566,1751562649273,-817.79,0.00019452,2]
[369384568,1751562649282,-460.0,0.00019452,2]
[369384570,1751562649291,-460.0,0.00019452,2]
[369384572,1751562649301,-460.0,0.00019452,2]
[369384574,1751562649311,-460.0,0.00019452,2]
[369384576,1751562649320,-460.0,0.00019452,2]
[369384578,1751562649329,-460.0,0.00019452,2]
[369384580,1751562649338,-2092.36,0.00019452,2]
[369384582,1751562649348,-678.46,0.00019452,2]
[369384584,1751562649358,-3743.2,0.00019452,2]
[369384586,1751562649368,-419.50257702,0.00019452,2]
[369384588,1751562649378,-460.0,0.00019452,2]
[369384590,1751562649388,-854.62,0.00019452,2]
[369384592,1751562649397,-460.0,0.00019452,2]
[369384594,1751562649407,-460.0,0.00019452,2]
[369384596,1751562649416,-460.0,0.00019452,2]
[369384598,1751562649425,-460.0,0.00019452,2]
[369384600,1751562649435,-856.3,0.00019452,2]
[369384628,1751562649688,-1224.49,0.00019452,2]
[369384631,1751562649704,-978.4,0.00019452,2]
[369384633,1751562649714,-1544.58,0.00019452,2]
[369384635,1751562649725,-500.0,0.0001946,2]
[369384637,1751562649735,-500.0,0.00019512,2]
[369384639,1751562649745,-500.0,0.00019526,2]
[369384641,1751562649755,-1446.68549727,0.0001953,2]
[369384643,1751562649765,-151.0,0.000196,2]
[369384644,1751562649775,-2257.2143559,0.00019644,2]
[369384647,1751562649785,-460.0,0.00019726,2]
[369384648,1751562649796,-460.0,0.00019726,2]
[369384650,1751562649805,-233.68,0.00019726,2]
[369384652,1751562649814,-3909.92,0.00019726,2]
[369384654,1751562649823,-1107.88,0.00019726,2]
[369384656,1751562649833,-2575.35,0.00019726,2]
[369384659,1751562649843,-2549.45,0.00019726,2]
[369384661,1751562649852,-460.0,0.00019726,2]
[369384663,1751562649862,-460.0,0.00019726,2]
[369384665,1751562649871,-1158.99,0.00019726,2]
[369384667,1751562649880,-992.72,0.00019726,2]
[369384669,1751562649890,-2475.14,0.00019726,2]
[369384671,1751562649901,-982.65,0.00019726,2]
[369384673,1751562649910,-460.0,0.00019726,2]
[369384675,1751562649919,-460.0,0.00019726,2]
[369384677,1751562649929,-2775.08,0.00019726,2]
[369384678,1751562649939,-2110.18,0.00019726,2]
[369384680,1751562649949,-460.0,0.00019726,2]
[369384682,1751562649958,-1040.84,0.00019726,2]
[369384684,1751562649967,-477.74298739,0.00019726,2]
[369384686,1751562649976,-460.0,0.00019726,2]
[369384688,1751562649986,-573.89,0.00019726,2]
[369384691,1751562649996,-460.0,0.00019726,2]
[369384693,1751562650005,-1705.66,0.00019726,2]
[369384695,1751562650015,-460.0,0.00019726,2]
[369384696,1751562650025,-817.79,0.00019726,2]
[369384698,1751562650034,-460.0,0.00019726,2]
[369384700,1751562650043,-332.49,0.00019726,2]
[369384702,1751562650052,-460.0,0.00019726,2]
[369384704,1751562650062,-460.0,0.00019726,2]
[369384706,1751562650071,-460.0,0.00019726,2]
[369384708,1751562650080,-460.0,0.00019726,2]
[369384710,1751562650089,-2092.36,0.00019726,2]
[369384712,1751562650099,-678.46,0.00019726,2]
[369384714,1751562650108,-3743.2,0.00019726,2]
[369384716,1751562650117,-460.0,0.00019726,2]
[369384718,1751562650127,-854.62,0.00019726,2]
[369384720,1751562650137,-545.89923303,0.00019726,2]
[369384722,1751562650146,-460.0,0.00019726,2]
[369384724,1751562650156,-460.0,0.00019726,2]
[369384726,1751562650165,-460.0,0.00019726,2]
[369384728,1751562650175,-856.3,0.00019726,2]
[369384730,1751562650185,-1224.49,0.00019726,2]
[369384732,1751562650194,-978.4,0.00019726,2]
[369384734,1751562650203,-1544.58,0.00019726,2]
[369384736,1751562650212,-1264.40133003,0.00019768,2]
[369384738,1751562650221,-3017.3753188,0.00019768,2]
[369384740,1751562650231,-500.0,0.00019897,2]
[369384742,1751562650241,-500.0,0.00019897,2]
[369384744,1751562650250,-290.29934044,0.00019897,2]
[369384746,1751562650259,-641.76989479,0.00019897,2]
[369384748,1751562650269,-500.0,0.00019897,2]
[369384750,1751562650278,-500.0,0.00019897,2]
[369384752,1751562650287,-500.0,0.00019897,2]
[369384754,1751562650298,-500.0,0.00019897,2]
[369384756,1751562650306,-500.0,0.00019897,2]
[369384758,1751562650315,-500.0,0.00019897,2]
[369384760,1751562650324,-500.0,0.00019897,2]
[369384762,1751562650334,-500.0,0.00019897,2]
[369384764,1751562650342,-500.0,0.00019897,2]
[369384766,1751562650351,-500.0,0.00019897,2]
[369384768,1751562650360,-500.0,0.00019897,2]
[369384770,1751562650369,-500.0,0.00019897,2]
[369384772,1751562650378,-600.0,0.00019897,2]
[369384774,1751562650387,-500.0,0.00019897,2]
[369384776,1751562650396,-500.0,0.00019897,2]
[369384778,1751562650405,-500.0,0.00019897,2]
[369384780,1751562650414,-500.0,0.00019897,2]
[369384782,1751562650423,-500.0,0.00019897,2]
[369384784,1751562650432,-500.0,0.00019897,2]
[369384786,1751562650440,-500.0,0.00019897,2]
[369384788,1751562650450,-500.0,0.00019897,2]
[369384790,1751562650459,-1291.77,0.00019899,2]
[369384792,1751562650468,-151.0,0.000199,2]
[369384794,1751562650478,-207.4,0.00019907,2]
[369384796,1751562650487,-690.642,0.00019907,2]
[369384798,1751562650496,-500.0,0.00019907,2]
[369384800,1751562650505,-500.0,0.00019907,2]
[369384802,1751562650514,-5000.0,0.00019907,2]
[369384804,1751562650523,-500.0,0.00019907,2]
[369384805,1751562650533,-500.0,0.00019907,2]
[369384807,1751562650543,-4436.05959284,0.00019907,2]
[369384809,1751562650553,-500.0,0.00019907,2]
[369384811,1751562650563,-500.0,0.00019907,2]
[369384813,1751562650572,-500.0,0.00019907,2]
[369384815,1751562650581,-500.0,0.00019907,2]
[369384817,1751562650591,-500.0,0.00019907,2]
[369384819,1751562650601,-500.0,0.00019907,2]
[369384821,1751562650610,-500.0,0.00019907,2]
[369384824,1751562650620,-25000.0,0.00019907,2]
[369384825,1751562650629,-18774.53448023,0.00019907,2]
[369384827,1751562650638,-500.0,0.00019907,2]
[369384829,1751562650650,-500.0,0.00019907,2]
[369384832,1751562650660,-500.0,0.00019907,2]
[369384834,1751562650671,-500.0,0.00019907,2]
[369384836,1751562650682,-500.0,0.00019907,2]
[369384838,1751562650692,-500.0,0.00019907,2]
[369384840,1751562650701,-500.0,0.00019907,2]
[369384842,1751562650711,-500.0,0.00019907,2]
[369384844,1751562650721,-500.0,0.00019907,2]
[369384846,1751562650732,-500.0,0.00019907,2]
[369384848,1751562650742,-823.0,0.00019942,2]
[369384850,1751562650752,-521.74790791,0.00019962,2]
[369384852,1751562650761,-460.0,0.0002,2]
[369384854,1751562650771,-12500.0,0.0002,2]
[369384856,1751562650781,-460.0,0.0002,2]
[369384858,1751562650791,-3909.92,0.0002,2]
[369384860,1751562650802,-1107.88,0.0002,2]
[369384862,1751562650812,-2575.35,0.0002,2]
[369384864,1751562650821,-2549.45,0.0002,2]
[369384866,1751562650831,-460.0,0.0002,2]
[369384867,1751562650840,-590.78329537,0.0002,2]
[369384870,1751562650850,-1158.99,0.0002,2]
[369384872,1751562650859,-992.72,0.0002,2]
[369384874,1751562650871,-2475.14,0.0002,2]
[369384876,1751562650880,-982.65,0.0002,2]
[369384878,1751562650890,-460.0,0.0002,2]
[369384880,1751562650899,-460.0,0.0002,2]
[369384882,1751562650909,-2775.08,0.0002,2]
[369384884,1751562650918,-2110.18,0.0002,2]
[369384886,1751562650927,-432.44055632,0.0002,2]
[369384888,1751562650937,-1040.84,0.0002,2]
[369384890,1751562650947,-460.0,0.0002,2]
[369384892,1751562650956,-573.89,0.0002,2]
[369384894,1751562650965,-460.0,0.0002,2]
[369384896,1751562650975,-1705.66,0.0002,2]
[369384898,1751562650984,-460.0,0.0002,2]
[369384899,1751562650993,-817.79,0.0002,2]
[369384902,1751562651003,-602.13555245,0.0002,2]
[369384903,1751562651012,-460.0,0.0002,2]
[369384906,1751562651022,-460.0,0.0002,2]
[369384907,1751562651031,-341.86486891,0.0002,2]
[369384909,1751562651040,-460.0,0.0002,2]
[369384911,1751562651050,-2092.36,0.0002,2]
[369384913,1751562651059,-678.46,0.0002,2]
[369384915,1751562651068,-3743.2,0.0002,2]
[369384917,1751562651078,-460.0,0.0002,2]
[369384919,1751562651087,-854.62,0.0002,2]
[369384921,1751562651097,-460.0,0.0002,2]
[369384924,1751562651107,-241.9,0.0002,2]
[369384926,1751562651117,-460.0,0.0002,2]
[369384928,1751562651127,-856.3,0.0002,2]
[369384930,1751562651136,-1224.49,0.0002,2]
[369384932,1751562651146,-978.4,0.0002,2]
[369384934,1751562651156,-1544.58,0.0002,2]
[369384936,1751562651165,-500.0,0.00020008,2]
[369384938,1751562651175,-500.0,0.00020074,2]
[369384940,1751562651184,-242.902717,0.00020187,2]
[369384942,1751562651194,-177.915,0.00020258,2]
[369384944,1751562651203,-377.315,0.00020258,2]
[369384946,1751562651212,-460.0,0.00020273,2]
[369384947,1751562651221,-460.0,0.00020273,2]
[369384948,1751562651230,-3909.92,0.00020273,2]
[369384949,1751562651239,-1107.88,0.00020273,2]
[369384950,1751562651248,-2575.35,0.00020273,2]
[369384951,1751562651257,-2549.45,0.00020273,2]
[369384952,1751562651266,-460.0,0.00020273,2]
[369384953,1751562651276,-1158.99,0.00020273,2]
[369384954,1751562651285,-992.72,0.00020273,2]
[369384955,1751562651295,-2475.14,0.00020273,2]
[369384956,1751562651304,-982.65,0.00020273,2]
[369384957,1751562651313,-460.0,0.00020273,2]
[369384958,1751562651322,-460.0,0.00020273,2]
[369384959,1751562651331,-2775.08,0.00020273,2]
[369384960,1751562651340,-2110.18,0.00020273,2]
[369384961,1751562651349,-1040.84,0.00020273,2]
[369384962,1751562651358,-460.0,0.00020273,2]
[369384963,1751562651367,-573.89,0.00020273,2]
[369384964,1751562651377,-460.0,0.00020273,2]
[369384965,1751562651387,-1705.66,0.00020273,2]
[369384966,1751562651396,-460.0,0.00020273,2]
[369384967,1751562651405,-817.79,0.00020273,2]
[369384968,1751562651413,-460.0,0.00020273,2]
[369384969,1751562651422,-460.0,0.00020273,2]
[369384970,1751562651431,-390.77,0.00020273,2]
[369384971,1751562651440,-2092.36,0.00020273,2]
[369384972,1751562651450,-678.46,0.00020273,2]
[369384973,1751562651459,-3743.2,0.00020273,2]
[369384974,1751562651468,-460.0,0.00020273,2]
[369384975,1751562651479,-854.62,0.00020273,2]
[369384976,1751562651489,-460.0,0.00020273,2]
[369384977,1751562651498,-460.0,0.00020273,2]
[369384978,1751562651508,-856.3,0.00020273,2]
[369384979,1751562651517,-1224.49,0.00020273,2]
[369384980,1751562651526,-978.4,0.00020273,2]
[369384981,1751562651536,-1544.58,0.00020273,2]
[369384982,1751562651545,-500.0,0.00020273,2]
[369384983,1751562651554,-151.0,0.000204,4]
[369384985,1751562651563,-1000.0,0.00020445,2]
[369384987,1751562651573,-1000.0,0.00020445,2]
[369384989,1751562651582,-1000.0,0.00020445,2]
[369384991,1751562651591,-1000.0,0.00020445,2]
[369384993,1751562651600,-500.0,0.00020445,2]
[369384995,1751562651610,-1000.0,0.00020445,2]
[369384997,1751562651618,-1000.0,0.00020445,2]
[369384999,1751562651627,-500.38992242,0.00020445,2]
[369385001,1751562651636,-1000.0,0.00020445,2]
[369385003,1751562651645,-500.0,0.00020445,2]
[369385005,1751562651655,-505.25506435,0.00020445,2]
[369385007,1751562651664,-1200.0,0.00020445,2]
[369385009,1751562651674,-1000.0,0.00020445,2]
[369385011,1751562651683,-1000.0,0.00020445,2]
[369385012,1751562651693,-1000.0,0.00020445,2]
[369385014,1751562651702,-1001.05354607,0.00020445,2]
[369385016,1751562651711,-1000.41508319,0.00020445,2]
[369385018,1751562651720,-1000.0,0.00020445,2]
[369385020,1751562651734,-1000.0,0.00020445,2]
[369385022,1751562651745,-5000.0,0.00020455,2]
[369385024,1751562651755,-2151.0,0.00020525,2]
[369385026,1751562651764,-646.0,0.00020525,2]
[369385028,1751562651774,-406.0,0.00020525,2]
[369385030,1751562651784,-426.113,0.00020525,2]
[369385032,1751562651793,-223.63,0.0002053,2]
[369385034,1751562651804,-460.0,0.00020547,2]
[369385036,1751562651814,-460.0,0.00020547,2]
[369385038,1751562651823,-3909.92,0.00020547,2]
[369385040,1751562651832,-1107.88,0.00020547,2]
[369385042,1751562651841,-2575.35,0.00020547,2]
[369385044,1751562651849,-2549.45,0.00020547,2]
[369385046,1751562651859,-460.0,0.00020547,2]
[369385048,1751562651868,-1158.99,0.00020547,2]
[369385051,1751562651878,-992.72,0.00020547,2]
[369385052,1751562651888,-2475.14,0.00020547,2]
[369385054,1751562651897,-982.65,0.00020547,2]
[369385056,1751562651906,-460.0,0.00020547,2]
[369385058,1751562651916,-460.0,0.00020547,2]
[369385060,1751562651926,-2775.08,0.00020547,2]
[369385062,1751562651935,-2110.18,0.00020547,2]
[369385064,1751562651945,-1040.84,0.00020547,2]
[369385066,1751562651954,-460.0,0.00020547,2]
[369385068,1751562651964,-573.89,0.00020547,2]
[369385070,1751562651974,-460.0,0.00020547,2]
[369385072,1751562651983,-1705.66,0.00020547,2]
[369385075,1751562651995,-460.0,0.00020547,2]
[369385076,1751562652006,-817.79,0.00020547,2]
[369385078,1751562652015,-460.0,0.00020547,2]
[369385080,1751562652024,-460.0,0.00020547,2]
[369385083,1751562652034,-2092.36,0.00020547,2]
[369385085,1751562652044,-678.46,0.00020547,2]
[369385087,1751562652053,-3743.2,0.00020547,2]
[369385089,1751562652062,-460.0,0.00020547,2]
[369385091,1751562652072,-854.62,0.00020547,2]
[369385092,1751562652082,-460.0,0.00020547,2]
[369385094,1751562652092,-506.75451664,0.00020547,2]
[369385096,1751562652102,-856.3,0.00020547,2]
[369385098,1751562652111,-1224.49,0.00020547,2]
[369385100,1751562652120,-978.4,0.00020547,2]
[369385102,1751562652130,-1544.58,0.00020547,2]
[369385104,1751562652139,-1291.77,0.00020599,2]
[369385106,1751562652149,-6388.35,0.000206,2]
[369385108,1751562652158,-150.413,0.00020646,2]
[369385110,1751562652168,-175.408,0.00020646,2]
[369385112,1751562652177,-150.419,0.00020646,2]
[369385114,1751562652187,-150.777,0.00020646,2]